[Event "12th Philadelphia Open"]
[Site "Philadelphia"]
[Date "2018.03.30"]
[Round "3.4"]
[White "Daggupati, Balaji"]
[Black "Tang, Andrew"]
[Result "1-0"]
[ECO "C79"]
[WhiteElo "2273"]
[BlackElo "2509"]
[PlyCount "93"]
[EventDate "2018.03.??"]
[EventType "swiss"]
[EventRounds "9"]
[EventCountry "USA"]
[TimeControl "5400+30"]
[WhiteClock "1:04:04"]
[BlackClock "0:10:28"]

1. e4 {[%emt 0:00:00]} e5 {[%emt 0:00:00]} 2. Nf3 {[%emt 0:00:00]} Nc6 {
[%emt 0:00:00]} 3. Bb5 {[%emt 0:00:00]} a6 {[%emt 0:00:00]} 4. Ba4 {[%emt 0:00:
00]} Nf6 {[%emt 0:00:00]} 5. O-O {[%emt 0:00:00]} d6 {[%emt 0:00:00]} 6. Re1 {
[%emt 0:00:00]} Bd7 {[%emt 0:00:00]} 7. c3 {[%emt 0:00:00]} g6 {[%emt 0:00:00]}
8. d4 {[%emt 0:00:00]} b5 {[%emt 0:00:00]} 9. Bc2 {[%emt 0:00:00]} Bg7 {
[%emt 0:00:00]} 10. Be3 {[%emt 0:00:00]} O-O {[%emt 0:00:00]} 11. dxe5 {
[%emt 0:00:00]} dxe5 {[%emt 0:00:00]} 12. Bc5 {[%emt 0:00:00]} Re8 {[%emt 0:00:
00]} 13. Nbd2 {[%emt 0:00:00]} Na5 {[%emt 0:00:00]} 14. Qe2 {[%emt 0:00:00]}
Nb7 {[%emt 0:00:00]} 15. Be3 {[%emt 0:00:00]} c5 {[%emt 0:02:45]} 16. Bg5 {
[%emt 0:00:00]} h6 {[%emt 0:07:50]} 17. Bxf6 {[%emt 0:00:00]} Qxf6 {[%emt 0:00:
30]} 18. Nf1 {[%emt 0:00:00]} Rad8 {[%emt 0:13:54]} 19. Ne3 {[%emt 0:00:00]}
Bc6 {[%emt 0:02:28]} 20. a4 {[%emt 0:02:28]} c4 {[%emt 0:06:38]} 21. axb5 {
[%emt 0:00:54]} axb5 {[%emt 0:00:30]} 22. b3 {[%emt 0:03:13]} cxb3 {[%emt 0:01:
47]} 23. Bxb3 {[%emt 0:00:30]} Nc5 {[%emt 0:00:47]} 24. Bd5 {[%emt 0:00:59]}
Bd7 {[%emt 0:14:57]} 25. Ra7 {[%emt 0:02:39]} Na4 {[%emt 0:05:42]} 26. Rxd7 {
[%emt 0:04:55]} Nxc3 {[%emt 0:07:02]} 27. Qd3 {[%emt 0:01:04]} Rxd7 {[%emt 0:
00:51]} 28. Qxc3 {[%emt 0:00:30]} Qe7 {[%emt 0:03:57]} 29. Qc6 {[%emt 0:04:32]}
Rb8 {[%emt 0:01:22]} 30. Qxg6 {[%emt 0:01:12]} Qf6 {[%emt 0:06:52]} 31. Qg3 {
[%emt 0:02:24]} b4 {[%emt 0:04:03]} 32. Bb3 {[%emt 0:03:30]} Kh7 {[%emt 0:02:
51]} 33. Nd5 {[%emt 0:01:37]} Qg6 {[%emt 0:01:07]} 34. Qh4 {[%emt 0:01:22]} Ra8
{[%emt 0:04:04]} 35. Ne7 {[%emt 0:01:37]} Qf6 {[%emt 0:01:36]} 36. Qxf6 {
[%emt 0:00:30]} Bxf6 {[%emt 0:00:30]} 37. Nd5 {[%emt 0:00:30]} Rd6 {[%emt 0:01:
10]} 38. Nxf6+ {[%emt 0:03:26]} Rxf6 {[%emt 0:00:30]} 39. Nxe5 {[%emt 0:00:30]}
Ra3 {[%emt 0:01:00]} 40. Rb1 {[%emt 0:02:18]} Rfa6 {[%emt 0:01:12]} 41. Kf1 {
[%emt 0:00:52]} Ra1 {[%emt 0:01:56]} 42. Rxa1 {[%emt 0:00:36]} Rxa1+ {[%emt 0:
00:30]} 43. Ke2 {[%emt 0:00:30]} Rb1 {[%emt 0:01:58]} 44. Bxf7 {[%emt 0:00:59]}
b3 {[%emt 0:00:30]} 45. Nd3 {[%emt 0:04:19]} Kg7 {[%emt 0:01:43]} 46. Bd5 {
[%emt 0:01:00]} b2 {[%emt 0:00:30]} 47. Kf3 {[%emt 0:00:30]} 1-0

[Event "12th Philadelphia Open"]
[Site "Philadelphia"]
[Date "2018.03.30"]
[Round "4"]
[White "Homa, Seth"]
[Black "Zhou, Jianchao"]
[Result "0-1"]
[ECO "B22"]
[WhiteElo "2247"]
[BlackElo "2611"]
[PlyCount "80"]
[EventDate "2018.03.??"]
[EventType "swiss"]
[EventRounds "9"]
[EventCountry "USA"]
[TimeControl "5400+30"]

1. e4 c5 2. c3 Nf6 3. e5 Nd5 4. d4 cxd4 5. cxd4 d6 6. Nf3 Nc6 7. Bc4 Nb6 8. Bb3
d5 9. Nh4 e6 10. Nf3 Be7 11. O-O Bd7 12. Nc3 Rc8 13. a3 Na5 14. Bc2 Nbc4 15.
Ne2 Qc7 16. Bd3 Qb6 17. b4 Nc6 18. Bxc4 dxc4 19. Nc3 O-O 20. d5 exd5 21. Nxd5
Qd8 22. b5 Be6 23. Nxe7+ Nxe7 24. Qxd8 Rfxd8 25. Bg5 Kf8 26. Be3 Nd5 27. a4
Nxe3 28. fxe3 Ke7 29. Kf2 Bg4 30. Nd4 Rd5 31. Kg3 Bd7 32. Kf4 Rcc5 33. Nf3 h6
34. h4 Be6 35. Rfc1 Rd3 36. Rc2 Bd5 37. Nd4 g6 38. g4 c3 39. Ra3 Rc4 40. Ra1
Rcxd4+ 0-1

[Event "12th Philadelphia Open"]
[Site "Philadelphia"]
[Date "2018.03.30"]
[Round "4"]
[White "Katz, Alexander"]
[Black "Feng, Maggie"]
[Result "1-0"]
[ECO "D02"]
[WhiteElo "2347"]
[BlackElo "2254"]
[PlyCount "165"]
[EventDate "2018.03.??"]
[EventType "swiss"]
[EventRounds "9"]
[EventCountry "USA"]
[TimeControl "5400+30"]

1. Nf3 d5 2. d4 c5 3. c3 Nf6 4. Bf4 Nc6 5. e3 Qb6 6. Qb3 c4 7. Qc2 Bf5 8. Qc1
Nh5 9. Bg5 h6 10. Bh4 g5 11. Bg3 Nxg3 12. hxg3 Bg7 13. Nbd2 O-O 14. Be2 Qc7 15.
Bd1 b5 16. g4 Bxg4 17. Nxg5 Bxd1 18. Qb1 f5 19. Ne6 Qd6 20. Nxf8 Bg4 21. f3
Qg3+ 22. Kf1 Rxf8 23. Kg1 Qd6 24. fxg4 f4 25. Qe1 e5 26. Nf3 fxe3 27. Qxe3 exd4
28. cxd4 Rf4 29. Rd1 Re4 30. Qf2 Qf4 31. g3 Qf6 32. Rh5 Qe6 33. Kf1 Rxg4 34.
Rh4 Rg6 35. Re1 Qf5 36. Rf4 Qh3+ 37. Qg2 Qxg3 38. Qxg3 Rxg3 39. Re6 Nb4 40. Kf2
Rh3 41. Rf5 Rh1 42. Re8+ Kh7 43. Rf7 Kg6 44. Rxa7 Bf6 45. Rg8+ Kf5 46. Rf8 Nd3+
47. Kg3 Nf4 48. Rxf6+ Kxf6 49. Kxf4 Rb1 50. Ra6+ Kg7 51. Ke5 Rxb2 52. Kxd5 c3
53. Ke4 c2 54. Rc6 Rxa2 55. Ne1 b4 56. Nxc2 b3 57. Ne3 h5 58. Rb6 b2 59. Nc4 h4
60. Rxb2 Ra4 61. Ne3 Kf6 62. Rb6+ Kg5 63. Rb8 Ra7 64. Rg8+ Kf6 65. Nd5+ Ke6 66.
Rh8 Ra1 67. Rxh4 Re1+ 68. Ne3 Ra1 69. Rh6+ Kd7 70. d5 Re1 71. Kd4 Ra1 72. Rh7+
Kd8 73. Nc4 Rd1+ 74. Kc5 Rc1 75. Kd6 Ke8 76. Ne5 Kf8 77. Ke6 Re1 78. d6 Kg8 79.
Ra7 Rd1 80. d7 Kf8 81. Ra8+ Kg7 82. d8=Q Rxd8 83. Rxd8 1-0

[Event "12th Philadelphia Open"]
[Site "Philadelphia"]
[Date "2018.03.30"]
[Round "4"]
[White "Kretchetov, Alexandre"]
[Black "Li, Ruifeng"]
[Result "1/2-1/2"]
[ECO "D45"]
[WhiteElo "2244"]
[BlackElo "2585"]
[PlyCount "84"]
[EventDate "2018.03.??"]
[EventType "swiss"]
[EventRounds "9"]
[EventCountry "USA"]
[TimeControl "5400+30"]

1. Nf3 Nf6 2. c4 c6 3. Nc3 d5 4. e3 e6 5. d4 Nbd7 6. Qc2 Bd6 7. b3 O-O 8. Be2
b6 9. O-O Bb7 10. Bb2 Qe7 11. Rad1 Rad8 12. Rfe1 Rfe8 13. Bf1 h6 14. h3 a5 15.
e4 dxe4 16. Nxe4 Nxe4 17. Qxe4 Nf6 18. Qh4 Qf8 19. Ne5 c5 20. Qf4 Nd7 21. dxc5
Bxe5 22. Bxe5 Nxe5 23. Qxe5 Qxc5 24. Qa1 Qa3 25. Rxd8 Rxd8 26. Rd1 Rd6 27. Rd3
Rxd3 28. Bxd3 Qd6 29. Bf1 Be4 30. Qc1 f5 31. Qe3 Kf7 32. Be2 Qc5 33. Qg3 g6 34.
Bf3 Bxf3 35. Qxf3 Kf6 36. Qa8 Qd6 37. Qh8+ Kg5 38. Qc3 e5 39. Qe3+ f4 40. Qe4
Qd1+ 41. Kh2 Qd4 42. f3 Qd6 1/2-1/2

[Event "12th Philadelphia Open"]
[Site "Philadelphia"]
[Date "2018.03.30"]
[Round "4"]
[White "Lee, Jayden Z"]
[Black "Yanayt, Eugene"]
[Result "0-1"]
[ECO "B35"]
[WhiteElo "1807"]
[BlackElo "2127"]
[PlyCount "70"]
[EventDate "2018.03.??"]
[EventType "swiss"]
[EventRounds "9"]
[EventCountry "USA"]
[TimeControl "5400+30"]

1. e4 c5 2. Nf3 Nc6 3. Nc3 g6 4. d4 cxd4 5. Nxd4 Bg7 6. Be3 Nf6 7. Bc4 O-O 8.
Bb3 d6 9. f3 Bd7 10. Qd2 Nxd4 11. Bxd4 b5 12. h4 a5 13. Nd5 e6 14. Bb6 Qb8 15.
Nxf6+ Bxf6 16. Bxa5 Bxb2 17. Rb1 Be5 18. f4 Bxf4 19. Qxf4 Rxa5 20. h5 b4 21.
Qh6 g5 22. Rd1 Qb6 23. Rd3 Qc5 24. Rg3 Qe5 25. Rhh3 f6 26. Rg4 Rf7 27. Kf2 Ba4
28. Rd3 Bxb3 29. axb3 Rc7 30. Rd2 Ra2 31. g3 Rcxc2 32. Rf4 Rxd2+ 33. Kf3 Rf2+
34. Kg4 Rxf4+ 35. Kh3 g4+ 0-1

[Event "12th Philadelphia Open"]
[Site "Philadelphia"]
[Date "2018.03.30"]
[Round "4"]
[White "Padmanabhan, Karthik"]
[Black "Goletiani, Rusudan"]
[Result "0-1"]
[ECO "B20"]
[WhiteElo "1914"]
[BlackElo "2306"]
[PlyCount "110"]
[EventDate "2018.03.??"]
[EventType "swiss"]
[EventRounds "9"]
[EventCountry "USA"]
[TimeControl "5400+30"]

1. e4 c5 2. d4 cxd4 3. c3 d3 4. Bxd3 Nc6 5. c4 e6 6. Nc3 a6 7. Nf3 Qc7 8. O-O
Nf6 9. h3 h5 10. g3 h4 11. Nxh4 Ne5 12. Qe2 Bc5 13. Kg2 b6 14. Nf3 Nxd3 15.
Qxd3 Bb7 16. Re1 Bb4 17. Bf4 d6 18. Ng5 Rc8 19. Rad1 e5 20. Be3 Qxc4 21. Bxb6
Nd7 22. Be3 f6 23. Nf3 Qxd3 24. Rxd3 Bxc3 25. bxc3 Bxe4 26. Rxd6 Rxc3 27. Red1
Bc6 28. Rc1 Rxc1 29. Bxc1 Bb7 30. Rd3 Kd8 31. Rc3 Re8 32. Kf1 Re6 33. Ke2 Rb6
34. a3 Rb1 35. Nd2 Rb5 36. Nc4 Rc5 37. Be3 Rc8 38. Rc1 Bd5 39. Nb2 Rb8 40. Na4
Rb3 41. Rc3 Rb1 42. Nc5 Nb6 43. Nd3 Na4 44. Rc1 Rb3 45. Nc5 Rb2+ 46. Kf1 Nxc5
47. Rd1 Kc7 48. Rxd5 Ne4 49. Ra5 Kb7 50. Ra4 Nc3 51. Rg4 g5 52. h4 gxh4 53.
gxh4 Nd5 54. Rg3 Kc6 55. h5 Kd6 0-1

[Event "12th Philadelphia Open"]
[Site "Philadelphia"]
[Date "2018.03.30"]
[Round "4"]
[White "Panchanatham, Vignesh"]
[Black "Popilski, Gil"]
[Result "1/2-1/2"]
[ECO "A52"]
[WhiteElo "2384"]
[BlackElo "2502"]
[PlyCount "84"]
[EventDate "2018.03.??"]
[EventType "swiss"]
[EventRounds "9"]
[EventCountry "USA"]
[TimeControl "5400+30"]

1. d4 Nf6 2. c4 e5 3. dxe5 Ng4 4. Bf4 g5 5. Bg3 Bg7 6. Nf3 Nc6 7. Nc3 Ngxe5 8.
Nxe5 Nxe5 9. e3 d6 10. Rc1 Be6 11. b3 f5 12. Be2 O-O 13. f4 Ng4 14. Bxg4 fxg4
15. O-O gxf4 16. exf4 Qd7 17. Nb5 Rae8 18. Nd4 c5 19. Nxe6 Qxe6 20. Kh1 Bd4 21.
f5 Qe2 22. Qxe2 Rxe2 23. Bxd6 Rf6 24. Bg3 Ra6 25. a4 Rb6 26. Rb1 Re3 27. Bf4
Rexb3 28. Rbe1 Kf7 29. g3 Ra6 30. Re4 Rxa4 31. Bg5 Rf3 32. Re7+ Kf8 33. Rfe1
Rxf5 34. Bh6+ Kg8 35. Rxb7 Ra1 36. Rxa1 Bxa1 37. Rxa7 Bd4 38. Bf4 Rf6 39. h4
Rb6 40. h5 Rb4 41. Ra8+ Kg7 42. Ra7+ Kg8 1/2-1/2

[Event "12th Philadelphia Open"]
[Site "Philadelphia"]
[Date "2018.03.30"]
[Round "4"]
[White "Saravanan, V."]
[Black "Mujumdar, Sameer"]
[Result "0-1"]
[ECO "E94"]
[WhiteElo "2326"]
[BlackElo "2092"]
[PlyCount "98"]
[EventDate "2018.03.??"]
[EventType "swiss"]
[EventRounds "9"]
[EventCountry "USA"]
[TimeControl "5400+30"]

1. Nf3 Nf6 2. c4 g6 3. Nc3 Bg7 4. e4 d6 5. d4 O-O 6. Be2 Na6 7. O-O e5 8. Be3
Ng4 9. Bg5 Qe8 10. dxe5 dxe5 11. h3 Nf6 12. Qb1 c6 13. b4 Nh5 14. c5 Nc7 15.
Rd1 Ne6 16. Be3 Nef4 17. Bf1 Qe7 18. Kh2 g5 19. g3 g4 20. hxg4 Bxg4 21. Nh4
Rad8 22. Rxd8 Rxd8 23. Qc2 Ne6 24. Bh3 Bxh3 25. Kxh3 Qd7 26. Kh2 Nd4 27. Qd1
Nf6 28. f3 Ne8 29. a3 Bf6 30. Ra2 Qe7 31. Qg1 Ng7 32. Qf2 Nge6 33. Rd2 Bxh4 34.
gxh4 Qf6 35. Qg3+ Kh8 36. Bxd4 Nxd4 37. Rd3 Rg8 38. Qf2 Qf4+ 39. Kh3 Qc1 40.
Kh2 Qf4+ 41. Kh3 Qc1 42. Kh2 Ne6 43. f4 Nxf4 44. Rg3 Rxg3 45. Qxg3 Qxa3 46. h5
Qb2+ 47. Kh1 Qc1+ 48. Kh2 Qd2+ 49. Kh1 Qd3 0-1

[Event "12th Philadelphia Open"]
[Site "Philadelphia"]
[Date "2018.03.30"]
[Round "4"]
[White "Tang, Andrew"]
[Black "Niemann, Hans"]
[Result "1-0"]
[ECO "A56"]
[WhiteElo "2509"]
[BlackElo "2302"]
[PlyCount "75"]
[EventDate "2018.03.??"]
[EventType "swiss"]
[EventRounds "9"]
[EventCountry "USA"]
[TimeControl "5400+30"]

1. d4 Nf6 2. c4 c5 3. d5 e5 4. Nc3 d6 5. e4 Be7 6. g3 Nbd7 7. Bg2 Nf8 8. Nge2
Ng6 9. Qd3 Bd7 10. O-O Qc8 11. Bd2 Bh3 12. Bxh3 Qxh3 13. Qf3 h5 14. Qg2 Qd7 15.
h4 a6 16. a4 b6 17. Nd1 Ng4 18. f3 Nh6 19. Kh2 Bf6 20. Qh3 Qxh3+ 21. Kxh3 a5
22. Ra3 Nf8 23. Nec3 Nd7 24. Nb5 Ke7 25. Bxh6 Rxh6 26. f4 Rhh8 27. Raf3 Rhf8
28. Ne3 g6 29. f5 Bg7 30. g4 hxg4+ 31. Nxg4 gxf5 32. Rxf5 Bh8 33. Rh5 Rg8 34.
Nh6 Nf6 35. Nxg8+ Rxg8 36. Rhf5 Rg6 37. Nc3 Rh6 38. Ne2 1-0

[Event "12th Philadelphia Open"]
[Site "Philadelphia"]
[Date "2018.03.30"]
[Round "4.1"]
[White "Stripunsky, Alexander"]
[Black "Sevian, Samuel"]
[Result "1/2-1/2"]
[ECO "A00"]
[WhiteElo "2538"]
[BlackElo "2619"]
[PlyCount "174"]
[EventDate "2018.03.??"]
[EventType "swiss"]
[EventRounds "9"]
[EventCountry "USA"]
[TimeControl "5400+30"]
[WhiteClock "0:00:21"]
[BlackClock "0:00:08"]

1. g3 {[%emt 0:00:00]} g6 {[%emt 0:00:00]} 2. Bg2 {[%emt 0:00:00]} Bg7 {
[%emt 0:00:00]} 3. e4 {[%emt 0:00:00]} c5 {[%emt 0:00:00]} 4. Ne2 {[%emt 0:00:
00]} Nc6 {[%emt 0:00:00]} 5. c3 {[%emt 0:00:00]} e5 {[%emt 0:00:00]} 6. d3 {
[%emt 0:00:00]} Nge7 {[%emt 0:00:00]} 7. Be3 {[%emt 0:00:00]} b6 {[%emt 0:00:
00]} 8. O-O {[%emt 0:00:00]} O-O {[%emt 0:00:00]} 9. Qa4 {[%emt 0:04:13]} Bb7 {
[%emt 0:05:30]} 10. c4 {[%emt 0:07:31]} Nd4 {[%emt 0:12:31]} 11. Nbc3 {[%emt 0:
02:33]} f5 {[%emt 0:04:01]} 12. f3 {[%emt 0:11:34]} h6 {[%emt 0:05:00]} 13. Bd2
{[%emt 0:02:47]} Nec6 {[%emt 0:02:41]} 14. Nxd4 {[%emt 0:04:49]} Nxd4 {[%emt 0:
01:06]} 15. Rae1 {[%emt 0:06:43]} f4 {[%emt 0:07:07]} 16. Ne2 {[%emt 0:09:14]}
Ne6 {[%emt 0:02:44]} 17. Qd1 {[%emt 0:06:03]} Rf7 {[%emt 0:01:43]} 18. Bc3 {
[%emt 0:01:39]} Qg5 {[%emt 0:07:19]} 19. gxf4 {[%emt 0:05:47]} Nxf4 {[%emt 0:
08:48]} 20. Nxf4 {[%emt 0:00:33]} Rxf4 {[%emt 0:07:52]} 21. Bd2 {[%emt 0:11:54]
} Qh5 {[%emt 0:00:46]} 22. Re2 {[%emt 0:03:22]} Rh4 {[%emt 0:01:21]} 23. Be1 {
[%emt 0:00:56]} Rf4 {[%emt 0:07:38]} 24. Bg3 {[%emt 0:00:53]} Rf7 {[%emt 0:00:
34]} 25. Rff2 {[%emt 0:05:55]} g5 {[%emt 0:02:37]} 26. Qf1 {[%emt 0:01:56]}
Raf8 {[%emt 0:00:42]} 27. Re3 {[%emt 0:03:27]} Qg6 {[%emt 0:00:54]} 28. Bh3 {
[%emt 0:01:12]} h5 {[%emt 0:01:58]} 29. Bf5 {[%emt 0:00:35]} Rxf5 {[%emt 0:04:
50]} 30. exf5 {[%emt 0:00:30]} Rxf5 {[%emt 0:00:30]} 31. h3 {[%emt 0:02:52]} d6
{[%emt 0:03:13]} 32. Qe2 {[%emt 0:04:42]} Bh6 {[%emt 0:01:25]} 33. Re4 {
[%emt 0:01:17]} Rf7 34. Kg2 Kh7 {[%emt 0:01:00]} 35. b3 {[%emt 0:01:00]} Qf5 {
[%emt 0:01:54]} 36. Rf1 {[%emt 0:00:39]} Rg7 {[%emt 0:04:17]} 37. Rh1 {[%emt 0:
00:33]} Rg6 {[%emt 0:01:08]} 38. Rf1 {[%emt 0:02:15]} Bc6 {[%emt 0:00:55]} 39.
Rh1 {[%emt 0:00:32]} Kg8 {[%emt 0:04:52]} 40. a3 {[%emt 0:00:50]} Kh7 {[%emt 0:
01:35]} 41. b4 {[%emt 0:00:00]} Kg7 {[%emt 0:00:00]} 42. b5 {[%emt 0:00:00]}
Bb7 {[%emt 0:00:00]} 43. Rf1 {[%emt 0:00:00]} Kh7 {[%emt 0:00:00]} 44. a4 {
[%emt 0:00:00]} Qd7 {[%emt 0:00:00]} 45. Kh2 {[%emt 0:00:00]} Kg8 {[%emt 0:00:
00]} 46. Qg2 {[%emt 0:00:00]} Bg7 {[%emt 0:00:00]} 47. Be1 {[%emt 0:00:00]} d5
{[%emt 0:00:00]} 48. Rh4 {[%emt 0:00:00]} dxc4 {[%emt 0:00:00]} 49. dxc4 {
[%emt 0:00:00]} e4 50. Rxh5 exf3 {[%emt 0:00:00]} 51. Qg4 {[%emt 0:00:52]} Qe7
{[%emt 0:02:41]} 52. Bg3 {[%emt 0:01:01]} Qe4 {[%emt 0:04:23]} 53. Qxe4 {
[%emt 0:01:42]} Bxe4 {[%emt 0:00:30]} 54. Bb8 {[%emt 0:00:33]} Bd4 {[%emt 0:00:
32]} 55. Kg3 {[%emt 0:00:34]} Rg7 {[%emt 0:00:50]} 56. Rxf3 {[%emt 0:00:57]}
Bxf3 {[%emt 0:00:30]} 57. Kxf3 Bf6 {[%emt 0:00:36]} 58. Kg4 {[%emt 0:01:02]}
Rb7 {[%emt 0:00:30]} 59. Bg3 {[%emt 0:00:44]} Kg7 {[%emt 0:00:30]} 60. Kf5 {
[%emt 0:01:32]} Re7 {[%emt 0:00:30]} 61. Bd6 {[%emt 0:01:02]} Rf7 {[%emt 0:00:
33]} 62. Ke6 {[%emt 0:00:33]} Rb7 {[%emt 0:00:42]} 63. Bf8+ {[%emt 0:00:30]}
Kxf8 {[%emt 0:00:30]} 64. Kxf6 {[%emt 0:00:30]} Rf7+ {[%emt 0:00:30]} 65. Kxg5
{[%emt 0:00:30]} Kg7 {[%emt 0:00:30]} 66. Rh4 {[%emt 0:00:36]} Rf3 {[%emt 0:00:
30]} 67. Re4 {[%emt 0:00:30]} Rg3+ {[%emt 0:00:30]} 68. Kf5 {[%emt 0:00:30]}
Kf7 {[%emt 0:00:30]} 69. h4 {[%emt 0:00:30]} Ra3 {[%emt 0:00:30]} 70. h5 {
[%emt 0:00:30]} Rxa4 {[%emt 0:00:30]} 71. h6 {[%emt 0:00:36]} Ra1 {[%emt 0:00:
30]} 72. Rh4 {[%emt 0:00:30]} Kg8 {[%emt 0:00:30]} 73. h7+ {[%emt 0:00:30]} Kh8
{[%emt 0:00:30]} 74. Ke5 {[%emt 0:00:30]} Rd1 {[%emt 0:00:30]} 75. Rf4 {
[%emt 0:00:42]} Rd7 {[%emt 0:00:30]} 76. Ke6 {[%emt 0:00:40]} Rd4 {[%emt 0:00:
30]} 77. Rf8+ {[%emt 0:00:53]} Kxh7 {[%emt 0:00:30]} 78. Rf7+ {[%emt 0:00:30]}
Kg6 {[%emt 0:00:30]} 79. Rxa7 {[%emt 0:00:30]} Rxc4 {[%emt 0:00:30]} 80. Rb7 {
[%emt 0:00:30]} Rb4 {[%emt 0:00:34]} 81. Rxb6 {[%emt 0:00:30]} c4 {[%emt 0:00:
30]} 82. Kd5+ {[%emt 0:00:53]} Kf7 {[%emt 0:00:30]} 83. Kc5 {[%emt 0:00:30]}
Rb1 {[%emt 0:00:30]} 84. Kxc4 {[%emt 0:00:30]} Ke7 {[%emt 0:00:30]} 85. Rc6 {
[%emt 0:00:31]} Rc1+ {[%emt 0:00:30]} 86. Kb4 {[%emt 0:00:30]} Rxc6 {[%emt 0:
00:30]} 87. bxc6 {[%emt 0:00:30]} Kd6 {[%emt 0:00:30]} 1/2-1/2

[Event "12th Philadelphia Open"]
[Site "Philadelphia"]
[Date "2018.03.30"]
[Round "4.2"]
[White "Azarov, Sergei"]
[Black "Daggupati, Balaji"]
[Result "1-0"]
[ECO "C92"]
[WhiteElo "2570"]
[BlackElo "2273"]
[PlyCount "83"]
[EventDate "2018.03.??"]
[EventType "swiss"]
[EventRounds "9"]
[EventCountry "USA"]
[TimeControl "5400+30"]
[WhiteClock "0:08:42"]
[BlackClock "0:52:42"]

1. e4 {[%emt 0:00:00]} e5 {[%emt 0:00:00]} 2. Nf3 {[%emt 0:00:00]} Nc6 {
[%emt 0:00:00]} 3. Bb5 {[%emt 0:00:00]} a6 {[%emt 0:00:00]} 4. Ba4 {[%emt 0:00:
00]} Nf6 {[%emt 0:00:00]} 5. O-O {[%emt 0:00:00]} Be7 {[%emt 0:00:00]} 6. Re1 {
[%emt 0:00:00]} b5 {[%emt 0:00:00]} 7. Bb3 {[%emt 0:00:00]} d6 {[%emt 0:00:00]}
8. c3 {[%emt 0:00:00]} O-O {[%emt 0:00:00]} 9. h3 {[%emt 0:00:00]} Bb7 {
[%emt 0:00:00]} 10. d4 {[%emt 0:00:00]} Nd7 {[%emt 0:00:00]} 11. a4 {[%emt 0:
00:00]} Na5 {[%emt 0:00:00]} 12. Bc2 {[%emt 0:00:00]} c5 {[%emt 0:00:00]} 13.
Nbd2 {[%emt 0:00:00]} Qc7 {[%emt 0:00:00]} 14. Nf1 {[%emt 0:00:00]} exd4 {
[%emt 0:00:00]} 15. cxd4 {[%emt 0:00:45]} Nc6 {[%emt 0:00:00]} 16. d5 {[%emt 0:
12:48]} Nb4 {[%emt 0:00:00]} 17. Bb1 {[%emt 0:01:26]} Nb6 {[%emt 0:00:00]} 18.
a5 {[%emt 0:07:40]} Nc4 {[%emt 0:00:00]} 19. Ne3 {[%emt 0:00:41]} Nxe3 {
[%emt 0:00:00]} 20. Bxe3 {[%emt 0:08:02]} Bf6 {[%emt 0:01:48]} 21. Qd2 {
[%emt 0:04:15]} Rfe8 {[%emt 0:02:14]} 22. Ra3 {[%emt 0:10:00]} Qd8 {[%emt 0:01:
33]} 23. Nh2 {[%emt 0:02:40]} Bc8 {[%emt 0:03:55]} 24. f4 {[%emt 0:03:31]} g6 {
[%emt 0:01:50]} 25. Rf1 {[%emt 0:02:31]} Ra7 {[%emt 0:05:44]} 26. f5 {[%emt 0:
02:33]} gxf5 {[%emt 0:07:13]} 27. exf5 {[%emt 0:02:47]} Rae7 {[%emt 0:10:31]}
28. Ng4 {[%emt 0:05:44]} Rxe3 {[%emt 0:03:04]} 29. Nxf6+ {[%emt 0:01:54]} Qxf6
{[%emt 0:00:30]} 30. Rxe3 {[%emt 0:00:30]} Rxe3 {[%emt 0:00:30]} 31. Qxe3 {
[%emt 0:00:30]} Kf8 {[%emt 0:02:02]} 32. Re1 {[%emt 0:06:44]} Bd7 {[%emt 0:00:
31]} 33. Be4 {[%emt 0:00:37]} Ke7 {[%emt 0:04:17]} 34. Qc3 {[%emt 0:03:10]} Qh4
{[%emt 0:07:40]} 35. g3 {[%emt 0:07:54]} Qg5 {[%emt 0:00:37]} 36. h4 {[%emt 0:
00:30]} Qg8 {[%emt 0:00:41]} 37. Bg2+ {[%emt 0:03:27]} Kd8 {[%emt 0:00:30]} 38.
Qf6+ {[%emt 0:04:15]} Kc7 {[%emt 0:00:30]} 39. Re7 {[%emt 0:01:43]} Qxg3 {
[%emt 0:01:31]} 40. Qxf7 {[%emt 0:01:32]} Kc8 {[%emt 0:00:37]} 41. Qf8+ {
[%emt 0:02:38]} Kc7 {[%emt 0:00:30]} 42. Qe8 {[%emt 0:01:31]} 1-0

[Event "12th Philadelphia Open"]
[Site "Philadelphia"]
[Date "2018.03.30"]
[Round "4.3"]
[White "Sheng, Joshua"]
[Black "Shabalov, Alexander"]
[Result "1-0"]
[ECO "B15"]
[WhiteElo "2408"]
[BlackElo "2568"]
[PlyCount "69"]
[EventDate "2018.03.??"]
[EventType "swiss"]
[EventRounds "9"]
[EventCountry "USA"]
[TimeControl "5400+30"]
[WhiteClock "0:03:40"]
[BlackClock "0:00:25"]

1. e4 {[%emt 0:00:00]} c6 {[%emt 0:00:00]} 2. d4 {[%emt 0:00:00]} d5 {[%emt 0:
00:00]} 3. Nc3 {[%emt 0:00:00]} g6 {[%emt 0:00:00]} 4. h3 {[%emt 0:00:00]} Bg7
{[%emt 0:00:00]} 5. Nf3 {[%emt 0:00:00]} Nf6 {[%emt 0:00:00]} 6. Bd3 {[%emt 0:
00:00]} dxe4 {[%emt 0:00:00]} 7. Nxe4 {[%emt 0:00:00]} Nxe4 {[%emt 0:00:00]} 8.
Bxe4 {[%emt 0:00:00]} Nd7 {[%emt 0:00:00]} 9. O-O {[%emt 0:00:00]} O-O {
[%emt 0:00:00]} 10. c3 {[%emt 0:00:00]} c5 {[%emt 0:00:00]} 11. Bc2 {[%emt 0:
00:00]} cxd4 {[%emt 0:05:21]} 12. Nxd4 {[%emt 0:00:00]} Qb6 {[%emt 0:01:13]}
13. Re1 {[%emt 0:00:00]} e5 {[%emt 0:01:19]} 14. Nb3 {[%emt 0:01:05]} Qc7 {
[%emt 0:02:26]} 15. Be3 {[%emt 0:08:29]} Nb6 {[%emt 0:11:03]} 16. Qe2 {[%emt 0:
03:07]} Nd5 {[%emt 0:08:17]} 17. Rad1 {[%emt 0:05:37]} Nxe3 {[%emt 0:00:30]}
18. Qxe3 {[%emt 0:00:30]} b6 {[%emt 0:00:32]} 19. Nd2 {[%emt 0:08:58]} Kh8 {
[%emt 0:09:26]} 20. Bb3 {[%emt 0:11:53]} Ba6 {[%emt 0:15:03]} 21. Ne4 {[%emt 0:
05:46]} h6 {[%emt 0:01:09]} 22. Nd6 {[%emt 0:20:00]} f5 {[%emt 0:08:46]} 23.
Rd5 {[%emt 0:05:16]} Kh7 {[%emt 0:07:22]} 24. Red1 {[%emt 0:02:57]} Rad8 {
[%emt 0:12:11]} 25. h4 {[%emt 0:01:23]} h5 {[%emt 0:05:42]} 26. Nf7 {[%emt 0:
01:39]} Rxd5 {[%emt 0:00:30]} 27. Ng5+ {[%emt 0:00:30]} Kh8 {[%emt 0:00:30]}
28. Rxd5 {[%emt 0:00:34]} Bc8 {[%emt 0:05:16]} 29. Qd2 {[%emt 0:03:09]} Bf6 {
[%emt 0:04:00]} 30. Nf7+ {[%emt 0:19:33]} Rxf7 {[%emt 0:00:30]} 31. Qh6+ {
[%emt 0:00:30]} Kg8 {[%emt 0:00:30]} 32. Qxg6+ {[%emt 0:01:08]} Kf8 {[%emt 0:
02:49]} 33. Rd6 {[%emt 0:00:46]} Bxh4 {[%emt 0:02:10]} 34. Rc6 {[%emt 0:00:30]}
Rg7 {[%emt 0:00:30]} 35. Qh6 {[%emt 0:00:30]} 1-0